bitfinex-derivatives/quotes_SOLF0:USTF0_20240918
["timestamp","ask_amount","ask_price","bid_price","bid_amount"]
[1726677622704,3.89894205,128.84,128.82,14.92]
[1726677622996,3.88,128.86,128.82,14.92]
[1726677623201,3.8802,128.85,128.83,3.8808]
[1726677623405,3.81855549,128.84,128.82,14.92]
[1726677624001,3.88,128.86,128.82,14.92]
[1726677624195,3.86632142,128.85,128.82,14.92]
[1726677624393,3.86632142,128.85,128.83,3.8807]
[1726677624798,4.3207,128.91,128.8,14.92]
[1726677624999,1.4179,128.85,128.81,3.8814]
[1726677625198,5.34985102,128.85,128.79,14.92]
[1726677625400,5.34985102,128.85,128.77,1.4227]
[1726677625401,1.4179,128.85,128.77,16.3427]
[1726677625602,1.4179,128.85,128.79,3.8819]
[1726677625603,1.4676,128.84,128.79,3.8819]
[1726677625909,3.8813,128.82,128.79,3.8819]
[1726677626707,7.67734474,128.81,128.79,3.8819]
[1726677626899,3.8815,128.81,128.79,3.8819]
[1726677627303,7.7567,128.92,128.79,14.92]
[1726677627507,14.92,128.9,128.82,14.92]
[1726677627902,3.8803,128.85,128.82,18.801]
[1726677628213,14.92,128.9,128.82,14.92]
[1726677628402,3.8801,128.86,128.83,3.8807]
[1726677628607,3.96402245,128.85,128.83,3.8807]
[1726677630411,3.0216,128.91,128.84,14.92]
[1726677630907,3.0216,128.91,128.85,14.92]
[1726677631208,3.0216,128.91,128.87,14.92]
[1726677631404,6.9003,128.91,128.88,3.8793]
[1726677631913,3.0216,128.91,128.87,14.92]
[1726677632112,6.9002,128.91,128.88,3.8792]
[1726677632504,3.0216,128.91,128.87,14.92]
[1726677633113,3.8789,128.9,128.87,18.7995]
[1726677633518,3.8791,128.89,128.87,14.92]
[1726677634306,3.0216,128.91,128.86,14.92]
[1726677634915,3.8792,128.89,128.86,18.7998]
[1726677636417,3.8794,128.88,128.86,14.92]
[1726677637820,3.8794,128.88,128.85,3.8801]
[1726677638414,17.9416,128.91,128.82,14.92]
[1726677638712,3.8796,128.88,128.82,14.92]
[1726677639418,3.8796,128.88,128.84,3.8803]
[1726677639716,3.8797,128.87,128.84,3.8803]
[1726677639909,3.91861458,128.86,128.84,3.8803]
[1726677641907,3.91861458,128.86,128.84,18.8003]
[1726677642111,3.91861458,128.86,128.85,3.8802]
[1726677643813,3.8795,128.88,128.85,3.8802]
[1726677644417,3.8797,128.87,128.85,3.8802]
[1726677644613,3.92552034,128.86,128.84,18.8004]
[1726677644821,3.92552034,128.86,128.82,14.92]
[1726677645113,3.92552034,128.86,128.84,3.8804]
[1726677645618,7.80552034,128.86,128.84,3.8804]
[1726677646205,7.80552034,128.86,128.77,5.3723516]
[1726677646206,3.92552034,128.86,128.77,1.4227]
[1726677646411,1.4016,128.85,128.79,14.92]
[1726677646911,3.881,128.83,128.79,14.92]
[1726677647222,3.881,128.83,128.8,3.8816]
[1726677648921,1.4016,128.85,128.79,14.92]
[1726677649313,3.881,128.83,128.8,3.8817]
[1726677650815,1.4016,128.85,128.79,14.92]
[1726677651019,3.8812,128.82,128.79,18.8019]
[1726677652720,1.4016,128.85,128.69,3.806933]
[1726677652922,1.4907,128.81,128.73,14.92]
[1726677653130,16.4493,128.8,128.72,14.92]
[1726677653425,17.9291,128.8,128.72,14.92]
[1726677654120,14.92,128.79,128.7,16.439]
[1726677654425,14.92,128.77,128.69,14.92]
[1726677655325,14.92,128.77,128.69,18.8048]
[1726677655518,18.73646455,128.77,128.69,18.8048]
[1726677655721,3.884,128.73,128.69,18.8048]
[1726677656118,18.73646455,128.77,128.69,14.92]
[1726677656824,18.73646455,128.77,128.67,14.92]
[1726677657028,18.73646455,128.77,128.69,3.885]
[1726677657322,14.92,128.75,128.67,14.92]
[1726677657624,2.9235,128.74,128.66,18.806]
[1726677657828,4.4283,128.74,128.66,18.806]
[1726677658124,3.885,128.7,128.66,18.806]
[1726677658325,4.4283,128.74,128.66,18.806]
[1726677658627,19.3483,128.74,128.66,3.886]
[1726677658832,19.3483,128.74,128.64,14.92]
[1726677659520,3.8849,128.7,128.66,3.8859]
[1726677659725,7.82493678,128.7,128.66,3.8859]
[1726677660031,14.92,128.73,128.66,3.8859]
[1726677661029,33.04755861,128.73,128.66,3.8859]
[1726677661233,3.885,128.7,128.66,3.8859]
[1726677661433,7.7541884,128.7,128.66,3.8859]
[1726677662127,7.7541884,128.7,128.67,3.8856]
[1726677662329,7.7541884,128.7,128.66,14.92]
[1726677662522,3.8851,128.69,128.66,18.8058]
[1726677662719,3.8851,128.69,128.66,14.92]
[1726677662930,17.88076526,128.68,128.64,0.92365668]
[1726677663228,31.63531428,128.67,128.65,3.8862]
[1726677663429,38.51260306,128.67,128.65,3.8862]
[1726677663626,6.87728878,128.66,128.65,3.8862]
[1726677663826,17.88095016,128.66,128.65,3.8862]
[1726677664526,20.63191244,128.72,128.7,3.8845]
[1726677664727,1.4539,128.74,128.71,14.92]
[1726677665230,1.4539,128.74,128.71,18.8044]
[1726677665231,5.3375,128.74,128.71,18.8044]
[1726677666129,5.3375,128.74,128.7,3.8846]
[1726677668030,3.8839,128.73,128.7,3.8846]
[1726677668434,1.4539,128.74,128.69,14.92]
[1726677669133,3.81646455,128.77,128.73,14.92]
[1726677669332,2.9817,128.79,128.73,14.92]
[1726677669833,6.82878473,128.79,128.73,14.92]
[1726677670039,3.8828,128.77,128.74,3.8835]
[1726677670228,3.8828,128.77,128.73,14.92]
[1726677670425,3.84708473,128.79,128.73,14.92]
[1726677670629,18.77143549,128.81,128.74,14.92]
[1726677671033,3.8825,128.78,128.75,3.8831]
[1726677671231,7.81806163,128.78,128.75,3.8831]
[1726677672739,7.81806163,128.78,128.69,3.87960578]
[1726677672740,3.93556163,128.78,128.76,14.92]
[1726677673031,1.4943,128.82,128.77,14.92]
[1726677673536,5.3755,128.82,128.79,3.8819]
[1726677674131,5.3755,128.82,128.78,3.8822]
[1726677674332,3.8815,128.81,128.78,3.8822]
[1726677675839,1.4943,128.82,128.77,14.92]
[1726677676738,1.4943,128.82,128.76,14.92]
[1726677676936,1.4943,128.82,128.77,3.8824]
[1726677677136,3.80251611,128.86,128.78,14.92]
[1726677677441,3.8808,128.84,128.81,3.8814]
[1726677677840,1.5,128.85,128.8,14.92]
[1726677678237,1.5,128.85,128.78,14.92]
[1726677678435,1.5,128.85,128.79,3.8818]
[1726677679545,1.5,128.85,128.8,3.8816]
[1726677679939,3.8807,128.84,128.78,14.92]
[1726677680137,1.5,128.85,128.78,14.92]
[1726677680844,3.8809,128.83,128.8,3.8816]
[1726677681542,3.8806,128.84,128.81,3.8813]
[1726677681741,1.5,128.85,128.81,14.92]
[1726677682039,6.97740005,128.87,128.81,14.92]
[1726677682244,3.93970005,128.87,128.81,14.92]
[1726677682432,1.4545,128.89,128.81,14.92]
[1726677682635,18.4322398,128.89,128.81,14.92]
[1726677682839,5.34045381,128.89,128.81,14.92]
[1726677683045,5.34045381,128.89,128.83,3.8807]
[1726677683544,3.8801,128.86,128.83,3.8807]
[1726677684341,14.92,128.87,128.8,14.92]
[1726677684742,3.8808,128.84,128.81,3.8813]
[1726677686749,1.4518,128.86,128.8,3.8816]
[1726677687042,2.9114,128.86,128.78,14.92]
[1726677687445,3.881,128.83,128.8,3.8816]
[1726677687639,3.89954785,128.82,128.8,3.8816]
[1726677689442,3.89954785,128.82,128.79,3.8819]
[1726677689443,7.78074785,128.82,128.79,3.8819]
[1726677689943,3.89954785,128.82,128.75,14.92]
[1726677690147,14.92,128.84,128.75,14.92]
[1726677690335,3.8817,128.81,128.77,3.8824]
[1726677690543,7.68483141,128.81,128.75,14.92]
[1726677690945,3.8819,128.8,128.75,14.92]
[1726677691145,1.4028,128.83,128.75,14.92]
[1726677691146,18.38628731,128.83,128.75,14.92]
[1726677691449,3.8822,128.79,128.75,14.92]
[1726677691740,7.82982788,128.79,128.75,14.92]
[1726677692042,3.90256984,128.78,128.75,14.92]
[1726677692243,7.78496984,128.78,128.75,14.92]
[1726677692445,7.78496984,128.78,128.73,14.92]
[1726677692640,3.90256984,128.78,128.73,14.92]
[1726677692846,14.92,128.8,128.72,155.38]
[1726677693051,1.5252,128.77,128.72,155.38]
[1726677693244,7.70694131,128.76,128.73,3.8838]
[1726677693443,3.82374131,128.76,128.72,155.38]
[1726677693649,1.5252,128.77,128.72,155.38]
[1726677694251,7.7329743,128.76,128.72,159.264]
[1726677694949,3.8497743,128.76,128.72,155.38]
[1726677695147,1.5252,128.77,128.7,14.92]
[1726677695548,3.8834,128.75,128.7,14.92]
[1726677696150,3.8834,128.75,128.71,3.8843]
[1726677697249,3.8836,128.74,128.71,3.8843]
[1726677703556,20.32295005,128.77,128.71,3.8843]
[1726677703557,3.8839,128.73,128.71,3.8843]
[1726677704254,20.32295005,128.77,128.71,3.8843]
[1726677704657,3.8837,128.74,128.71,3.8843]
[1726677706048,3.8839,128.73,128.71,3.8843]
[1726677706648,20.32295005,128.77,128.72,3.884]
[1726677706858,20.32295005,128.77,128.69,14.92]
[1726677707453,3.8839,128.73,128.69,14.92]
[1726677707658,20.32295005,128.77,128.69,14.92]
[1726677708057,3.884,128.73,128.69,14.92]
[1726677708860,5.40295005,128.77,128.69,14.92]
[1726677709048,5.40295005,128.77,128.62,163.2343]
[1726677709049,5.40295005,128.77,128.67,14.92]
[1726677709359,5.40295005,128.77,128.73,14.92]
[1726677709661,9.28565005,128.77,128.74,3.8833]
[1726677709961,9.28565005,128.77,128.73,14.92]
[1726677710166,9.28565005,128.77,128.74,3.8833]
[1726677710850,9.28565005,128.77,128.75,3.8832]
[1726677711151,5.40295005,128.77,128.75,3.8832]
[1726677712554,5.40295005,128.77,128.76,3.8829]
[1726677712760,1.531,128.79,128.75,14.92]
[1726677713060,3.82149518,128.8,128.76,14.92]
[1726677713363,3.8815,128.81,128.76,14.92]
[1726677713856,7.83414016,128.8,128.77,3.8825]
[1726677714058,3.91086415,128.79,128.75,14.92]
[1726677714364,3.91086415,128.79,128.76,3.8827]
[1726677715452,7.79306415,128.79,128.76,3.8827]
[1726677715649,3.8822,128.79,128.76,3.8827]
[1726677716258,7.85803339,128.79,128.76,3.8827]
[1726677719054,7.85803339,128.79,128.75,18.8031]
[1726677719450,3.8824,128.78,128.75,3.8831]
[1726677720957,3.8827,128.77,128.74,3.8835]
[1726677721951,3.8825,128.78,128.75,3.8831]
[1726677722155,5.38783339,128.79,128.73,14.92]
[1726677722859,3.8825,128.78,128.73,14.92]
[1726677723361,3.8825,128.78,128.75,3.8831]
[1726677723960,3.8825,128.78,128.75,13.4331]
[1726677724157,14.93783339,128.79,128.75,9.55]
[1726677724759,5.38783339,128.79,128.75,9.55]
[1726677724965,16.98494326,128.85,128.78,9.55]
[1726677725257,1.5243,128.85,128.84,9.55]
[1726677725461,3.90067614,128.86,128.85,3.8801]
[1726677725654,11.0526,128.9,128.85,9.55]
[1726677725860,11.0526,128.9,128.85,13.4301]
[1726677725861,3.8793,128.89,128.85,13.4301]
[1726677726763,3.8795,128.88,128.84,3.8805]
[1726677727864,3.8798,128.87,128.83,9.55]
[1726677728063,3.8798,128.87,128.81,14.91]
[1726677728463,3.8798,128.87,128.83,3.8807]
[1726677729458,3.8798,128.87,128.81,14.91]
[1726677729662,3.8798,128.87,128.84,3.8805]
[1726677730260,3.8798,128.87,128.83,3.8808]
[1726677730465,3.88,128.86,128.83,3.8808]
[1726677731557,3.8797,128.87,128.83,3.8808]
[1726677731765,20.32771998,128.9,128.83,3.8808]
[1726677731969,20.32771998,128.9,128.82,3.881]
[1726677732568,3.8801,128.86,128.82,3.881]
[1726677733067,14.91,128.88,128.8,14.91]
[1726677734470,14.91,128.88,128.73,14.91]
[1726677734471,14.91,128.86,128.78,14.91]
[1726677734862,3.8807,128.84,128.8,3.8816]
[1726677735269,1.3998,128.85,128.78,14.91]
[1726677735470,3.881,128.83,128.79,3.8818]
[1726677735770,7.73791249,128.83,128.79,3.8818]
[1726677735970,3.8812,128.82,128.79,3.8818]
[1726677736166,1.4811,128.84,128.78,14.91]
[1726677736366,2.809,128.89,128.83,14.91]
[1726677736562,4.2152,128.89,128.83,14.91]
[1726677737066,8.0944,128.89,128.83,14.91]
[1726677737369,3.8795,128.88,128.77,7.7651]
[1726677737567,4.2152,128.89,128.82,14.91]
[1726677738170,3.8798,128.87,128.82,14.91]
[1726677738567,19.1252,128.89,128.82,14.91]
[1726677738768,19.1252,128.89,128.8,14.91]
[1726677739271,3.8805,128.85,128.8,14.91]
[1726677739471,7.6768121,128.85,128.8,14.91]
[1726677739870,7.6768121,128.85,128.81,3.8812]
[1726677740067,7.6768121,128.85,128.8,14.91]
[1726677741276,3.7963121,128.85,128.8,14.91]
[1726677741472,3.88,128.86,128.8,14.91]
[1726677742063,3.83573289,128.86,128.82,14.91]
[1726677742370,4.2152,128.89,128.83,14.91]
[1726677742670,3.8795,128.88,128.84,3.8803]
[1726677743270,4.2152,128.89,128.84,3.8803]
[1726677743468,3.8795,128.88,128.84,3.8803]
[1726677745877,4.2152,128.89,128.84,3.8803]
[1726677745878,3.8798,128.87,128.84,3.8803]
[1726677747479,3.88,128.86,128.83,3.8807]
[1726677747679,3.86688412,128.86,128.78,14.91]
[1726677747977,19.1252,128.89,128.8,14.91]
[1726677748171,3.8802,128.86,128.82,3.881]
[1726677748371,7.70846402,128.86,128.82,3.881]
[1726677748578,22.43511511,128.86,128.82,3.881]
[1726677748775,3.8803,128.85,128.82,3.881]
[1726677749479,7.70157388,128.85,128.82,3.881]
[1726677749678,3.82127388,128.85,128.78,14.91]
[1726677749877,1.4665,128.84,128.78,14.91]
[1726677750078,5.43495506,128.84,128.78,14.91]
[1726677750474,9.31565506,128.84,128.78,14.91]
[1726677750677,5.43495506,128.84,128.78,14.91]
[1726677751378,1.4954,128.83,128.78,14.91]
[1726677752284,1.4954,128.83,128.8,3.8815]
[1726677753175,5.3764,128.83,128.8,3.8815]
[1726677753878,3.8811,128.82,128.8,3.8815]
[1726677754281,3.8811,128.82,128.79,3.8819]
[1726677754686,3.8815,128.81,128.78,14.91]
[1726677755184,3.96845506,128.84,128.8,14.91]
[1726677755384,4.2614,128.89,128.82,14.91]
[1726677756579,3.8798,128.87,128.84,3.8804]
[1726677757779,3.88,128.86,128.84,3.8804]
[1726677757978,3.93536343,128.86,128.83,3.8808]
[1726677758184,3.8804,128.85,128.81,14.91]
[1726677758380,3.8804,128.85,128.82,3.8809]
[1726677762781,3.8806,128.84,128.82,3.8809]
[1726677765803,3.8806,128.84,128.75,7.7664]
[1726677765804,3.8809,128.83,128.79,14.91]
[1726677766095,3.8804,128.85,128.79,14.91]
[1726677766502,31.0024598,128.88,128.79,14.91]
[1726677766706,3.8805,128.84,128.81,3.8813]
[1726677766904,7.68187543,128.84,128.81,3.8813]
[1726677767391,3.8809,128.83,128.8,3.8816]
[1726677768099,7.80832945,128.83,128.8,3.8816]
[1726677768301,3.8809,128.83,128.8,3.8816]
[1726677768904,7.84445357,128.83,128.8,3.8816]
[1726677769104,7.84445357,128.83,128.81,3.8814]
[1726677769301,7.84445357,128.83,128.79,14.91]
[1726677770004,7.84445357,128.83,128.8,3.8816]
[1726677771498,3.96355357,128.83,128.81,3.8814]
[1726677771698,14.91,128.87,128.81,3.8814]
[1726677772002,9.54,128.86,128.81,13.4214]
[1726677772204,3.881,128.83,128.81,9.54]
[1726677773798,9.54,128.84,128.72,155.34]
[1726677773994,3.0135,128.83,128.72,159.2224582]
[1726677774305,3.8817,128.81,128.79,9.54]
[1726677775010,8.41186104,128.83,128.77,9.54]
[1726677775306,9.54,128.82,128.77,13.4225]
[1726677775504,9.54,128.82,128.78,9.54]
[1726677775906,3.8819,128.8,128.78,9.54]
[1726677777998,3.882,128.79,128.76,3.8827]
[1726677778200,3.882,128.79,128.77,9.54]
[1726677778903,3.8819,128.8,128.77,13.4226]
[1726677779898,3.8816,128.81,128.79,9.54]
[1726677780305,3.8812,128.82,128.8,9.54]
[1726677780509,8.41186104,128.83,128.8,9.54]
[1726677780908,8.41186104,128.83,128.81,9.54]
[1726677781110,6.95686104,128.83,128.82,9.54]
[1726677781302,6.95686104,128.83,128.72,7.7681]
[1726677781503,10.83786104,128.83,128.8,13.4216]
[1726677782404,3.8812,128.82,128.8,13.4216]
[1726677782811,3.8812,128.82,128.8,9.54]
[1726677783103,3.8812,128.82,128.79,13.4219]
[1726677783806,3.8815,128.81,128.78,3.8822]
[1726677784003,3.8815,128.81,128.79,9.54]
[1726677784207,3.8819,128.8,128.78,9.54]
[1726677785206,9.54,128.82,128.78,9.54]
[1726677785708,9.54,128.82,128.77,3.8824]
[1726677785709,3.882,128.79,128.77,9.54]
[1726677787112,3.8816,128.81,128.78,3.8823]
[1726677787313,9.54,128.82,128.77,9.54]
[1726677788112,9.54,128.82,128.77,13.4224]
[1726677788613,3.8818,128.8,128.77,13.4224]
[1726677789307,8.48676104,128.83,128.77,13.4224]
[1726677789308,3.8821,128.79,128.77,9.54]
[1726677789908,3.8821,128.79,128.77,13.4226]
[1726677790410,3.8818,128.8,128.77,13.4226]
[1726677791214,9.54,128.81,128.77,13.4226]
[1726677791406,18.02676104,128.83,128.78,13.4223]
[1726677791715,3.8813,128.82,128.8,9.54]
[1726677792214,12.36776104,128.83,128.8,9.54]
[1726677792717,6.95686104,128.83,128.8,9.54]
[1726677793016,10.83776104,128.83,128.8,13.4216]
[1726677794914,10.83776104,128.83,128.71,11.59980769]
[1726677794915,3.94336104,128.83,128.81,13.4214]
[1726677795114,3.8807,128.84,128.81,13.4214]
[1726677795420,3.96877184,128.83,128.82,13.4211]
[1726677795616,2.9363,128.87,128.82,9.54]
[1726677795918,6.8161,128.87,128.84,13.4205]
[1726677796516,3.88,128.86,128.84,9.54]
[1726677796816,7.81941184,128.86,128.83,13.4207]
[1726677797014,3.88,128.86,128.83,13.4207]
[1726677797612,3.8803,128.85,128.83,13.4207]
[1726677798319,3.8803,128.85,128.83,9.54]
[1726677798617,3.97824291,128.86,128.84,9.54]
[1726677798816,2.9363,128.87,128.84,9.54]
[1726677799617,3.8802,128.86,128.84,9.54]
[1726677799816,7.67835159,128.86,128.84,9.54]
[1726677800816,38.6749017,128.86,128.84,9.54]
[1726677801028,30.99655011,128.85,128.84,9.54]
[1726677802216,30.99655011,128.85,128.84,13.4205]
[1726677802420,14.7255085,128.85,128.84,9.54]
[1726677803021,16.27194728,128.85,128.84,9.54]
[1726677803223,18.6808483,128.85,128.84,9.54]
[1726677803428,20.22728708,128.85,128.84,9.54]
[1726677803621,38.83299558,128.85,128.84,9.54]
[1726677803926,34.87765578,128.85,128.84,9.54]
[1726677804132,38.79649073,128.85,128.84,9.54]
[1726677805225,18.64434345,128.85,128.84,9.54]
[1726677805719,3.91883495,128.85,128.84,9.54]
[1726677805919,3.88,128.86,128.84,9.54]
[1726677806120,30.99651405,128.86,128.84,9.54]
[1726677806323,14.7255085,128.85,128.84,9.54]
[1726677806530,18.6057085,128.85,128.84,9.54]
[1726677807120,3.8802,128.85,128.84,9.54]
[1726677808120,3.8412592,128.86,128.85,3.8802]
[1726677808320,1.3993,128.87,128.85,13.4202]
[1726677808521,5.2792,128.87,128.85,9.54]
[1726677809025,9.54,128.86,128.75,163.1463]
[1726677809224,3.8807,128.84,128.82,9.54]
[1726677810126,14.95971146,128.86,128.75,155.38]
[1726677810325,16.40211146,128.86,128.81,9.54]
[1726677810719,3.8808,128.84,128.81,9.54]
[1726677811832,3.8808,128.83,128.81,9.54]
[1726677812022,9.54,128.85,128.8,9.54]
[1726677812326,25.81401776,128.85,128.8,9.54]
[1726677812528,24.26822016,128.85,128.8,9.54]
[1726677812824,3.8811,128.83,128.8,9.54]
[1726677813216,3.8812,128.82,128.8,9.54]
[1726677813719,3.8811,128.83,128.8,9.54]
[1726677814320,3.8812,128.82,128.8,9.54]
[1726677816426,3.8815,128.81,128.8,9.54]
[1726677816627,16.27416399,128.83,128.8,9.54]
[1726677816826,18.60957169,128.82,128.8,9.54]
[1726677817129,5.322,128.82,128.8,9.54]
[1726677817326,1.4407,128.82,128.8,9.54]
[1726677817521,1.4407,128.82,128.72,155.34]
[1726677817719,9.54,128.8,128.76,9.54]
[1726677817924,9.54,128.8,128.74,3.8835]
[1726677818127,9.54,128.78,128.72,155.34]
[1726677818430,9.54,128.78,128.73,9.54]
[1726677818630,3.883,128.76,128.73,13.4237]
[1726677819227,1.4407,128.77,128.74,13.4235]
[1726677819228,5.3234,128.77,128.74,13.4235]
[1726677819828,1.4407,128.77,128.75,13.423]
[1726677820023,5.31184467,128.77,128.75,13.423]
[1726677820224,9.54,128.8,128.72,155.34]
[1726677820225,14.73270329,128.8,128.76,9.54]
[1726677820530,20.23906309,128.8,128.79,9.54]
[1726677820832,5.5063598,128.8,128.79,9.54]
[1726677822027,5.5063598,128.8,128.78,3.8821]
[1726677822233,9.3881598,128.8,128.77,3.8825]
[1726677822434,9.3881598,128.8,128.76,14.92]
[1726677822435,5.5063598,128.8,128.76,14.92]
[1726677822629,3.8823,128.79,128.75,3.8831]
[1726677822830,5.5063598,128.8,128.75,3.8831]
[1726677824426,3.8822,128.79,128.75,3.8831]
[1726677824634,3.8822,128.79,128.76,3.8829]
[1726677824935,5.5063598,128.8,128.74,14.92]
[1726677825128,3.8824,128.78,128.75,3.883]
[1726677825526,5.5063598,128.8,128.74,14.92]
[1726677825936,3.8822,128.79,128.76,3.8829]
[1726677827738,3.8825,128.78,128.75,3.8832]
[1726677828341,5.5063598,128.8,128.74,18.8033]
[1726677828837,3.8826,128.78,128.75,3.8832]
[1726677832240,5.5063598,128.8,128.76,3.8829]
[1726677832438,5.5063598,128.8,128.76,14.92]
[1726677835543,9.3881598,128.8,128.77,3.8825]
[1726677837339,5.5063598,128.8,128.78,3.8823]
[1726677837641,5.5063598,128.8,128.76,14.92]
[1726677837844,5.5063598,128.8,128.78,3.8822]
[1726677838144,5.5063598,128.8,128.76,14.92]
[1726677838544,9.3882598,128.8,128.77,3.8824]
[1726677838839,5.5063598,128.8,128.76,14.92]
[1726677839344,5.5063598,128.8,128.79,3.882]
[1726677839345,3.9690598,128.8,128.79,3.882]
[1726677839548,32.42346055,128.84,128.79,3.882]
[1726677839733,3.8811,128.83,128.79,3.882]
[1726677840442,1.418,128.84,128.78,18.8022]
[1726677840443,32.42215418,128.84,128.78,18.8022]
[1726677840745,1.418,128.84,128.78,18.8022]
[1726677840940,3.8814,128.82,128.78,18.8022]
[1726677841144,3.90006842,128.82,128.77,3.8825]
[1726677841340,16.338,128.84,128.77,3.8825]
[1726677841546,14.73017078,128.83,128.77,3.8825]
[1726677841738,3.8818,128.8,128.77,3.8825]
[1726677841939,7.73485773,128.8,128.77,3.8825]
[1726677842543,3.85305773,128.8,128.78,3.8823]
[1726677842744,3.8816,128.81,128.78,3.8823]
[1726677843348,7.84150364,128.81,128.78,3.8823]
[1726677843942,7.84150364,128.81,128.78,13.4323]
[1726677844846,3.8818,128.8,128.78,13.4323]
[1726677846648,7.84150364,128.81,128.78,13.4323]
[1726677846850,3.8816,128.81,128.78,13.4323]
[1726677847049,3.8816,128.81,128.79,3.882]
[1726677847447,7.7113459,128.81,128.79,3.882]
[1726677847944,3.8297459,128.81,128.8,3.8817]
[1726677848150,10.968,128.84,128.79,9.55]
[1726677848648,10.968,128.84,128.79,13.4319]
[1726677848850,10.968,128.84,128.79,9.55]
[1726677849046,10.968,128.84,128.79,13.4319]
[1726677849047,3.8813,128.82,128.79,13.4319]
[1726677849244,3.88090428,128.82,128.79,9.55]
[1726677849444,3.8815,128.81,128.79,9.55]
[1726677850242,7.85951429,128.81,128.79,9.55]
[1726677850443,3.8818,128.8,128.77,3.8825]
[1726677850650,3.8818,128.8,128.77,13.4325]
[1726677850840,13.51752641,128.81,128.69,155.4]
[1726677851045,3.8825,128.78,128.75,13.433]
[1726677851546,3.8827,128.77,128.74,13.4334]
[1726677851748,9.55,128.78,128.74,9.55]
[1726677851946,9.55,128.78,128.73,9.55]
[1726677852147,3.8829,128.77,128.73,13.4336]
[1726677852450,3.8829,128.77,128.74,9.55]
[1726677852848,3.8829,128.77,128.74,13.4335]
[1726677853351,3.8829,128.77,128.74,9.55]
[1726677854249,3.8829,128.77,128.74,13.4336]
[1726677856050,3.883,128.76,128.74,9.55]
[1726677856246,9.55,128.76,128.65,155.42]
[1726677856450,9.55,128.76,128.71,9.55]
[1726677856845,1.5102,128.75,128.71,9.55]
[1726677857243,3.8837,128.74,128.71,3.8843]
[1726677858060,7.85400241,128.74,128.71,3.8843]
[1726677859258,7.85400241,128.74,128.72,9.55]
[1726677860957,7.85400241,128.74,128.71,3.8843]
[1726677860958,3.8839,128.73,128.71,9.55]
[1726677861563,3.8839,128.73,128.71,13.4345]
[1726677864975,7.85400241,128.74,128.71,13.4345]
[1726677866069,3.8839,128.73,128.71,13.4345]
[1726677866863,3.91713308,128.73,128.71,13.4345]
[1726677867062,3.8837,128.74,128.71,13.4345]
[1726677867268,12.5677,128.75,128.71,13.4345]
[1726677867476,3.8839,128.73,128.71,9.55]
[1726677867778,7.75283831,128.73,128.71,9.55]
[1726677868373,7.75283831,128.73,128.71,13.4344]
[1726677869374,7.75283831,128.73,128.7,13.4346]
[1726677872477,3.8842,128.72,128.7,9.55]
[1726677872971,7.75293831,128.73,128.7,13.4348]
[1726677875971,7.75293831,128.73,128.7,3.8848]
[1726677876275,7.75293831,128.73,128.7,13.4348]
[1726677876472,3.8842,128.72,128.69,13.4348]
[1726677877175,7.71525271,128.72,128.69,9.55]
[1726677878075,17.26525271,128.72,128.68,3.8852]
[1726677878269,17.26525271,128.72,128.69,3.8849]
[1726677878875,17.26525271,128.72,128.68,3.8852]